bitfinex-derivatives/quotes_BTCF0:USTF0_20240814
["timestamp","ask_amount","ask_price","bid_price","bid_amount"]
[1723599799071,0.09069795,60802.0,60801.0,0.082208]
[1723599799674,0.082197,60810.0,60805.0,0.082202]
[1723599800871,0.082197,60810.0,60805.0,0.083202]
[1723599801268,0.082197,60810.0,60808.0,0.082199]
[1723599802675,0.37122706,60812.0,60808.0,0.083199]
[1723599802876,0.37122706,60812.0,60809.0,0.082197]
[1723599802877,0.003,60810.0,60809.0,0.082197]
[1723599803877,0.01042706,60812.0,60809.0,0.082197]
[1723599804066,0.004,60810.0,60809.0,0.082197]
[1723599805272,0.004,60810.0,60808.0,0.001]
[1723599805579,0.082197,60809.0,60808.0,0.001]
[1723599806081,0.082197,60809.0,60806.0,0.3608]
[1723599806865,0.082197,60809.0,60808.0,0.001]
[1723599808174,0.01362287,60810.0,60808.0,0.001]
[1723599808366,0.003,60810.0,60809.0,0.082197]
[1723599808568,0.082192,60814.0,60809.0,0.082197]
[1723599808766,0.122192,60814.0,60809.0,0.082197]
[1723599809478,0.003,60810.0,60809.0,0.082197]
[1723599809975,0.09273445,60814.0,60809.0,0.083197]
[1723599810179,0.13673445,60814.0,60809.0,0.083197]
[1723599810777,0.004,60810.0,60809.0,0.083197]
[1723599811369,0.004,60810.0,60809.0,0.082197]
[1723599811569,0.004,60810.0,60809.0,0.083197]
[1723599812280,0.09673445,60814.0,60809.0,0.083197]
[1723599812475,0.12673445,60814.0,60809.0,0.083197]
[1723599812873,0.004,60810.0,60809.0,0.083197]
[1723599814683,0.15363812,60810.0,60809.0,0.083197]
[1723599815082,0.3624242,60810.0,60809.0,0.083197]
[1723599815284,0.27173186,60810.0,60809.0,0.083197]
[1723599815474,0.3624242,60810.0,60809.0,0.083197]
[1723599815968,0.15363812,60810.0,60809.0,0.082197]
[1723599816180,0.15363812,60810.0,60809.0,0.083197]
[1723599816378,0.36705613,60810.0,60809.0,0.083197]
[1723599816779,0.15363812,60810.0,60809.0,0.083197]
[1723599817282,0.15363812,60810.0,60809.0,0.07487731]
[1723599817487,0.15363812,60810.0,60809.0,0.001]
[1723599817686,0.23583412,60810.0,60809.0,0.001]
[1723599818575,0.4492553,60810.0,60809.0,0.001]
[1723599819871,0.23583412,60810.0,60809.0,0.001]
[1723599820075,0.44926099,60810.0,60809.0,0.001]
[1723599821477,0.36706499,60810.0,60809.0,0.083197]
[1723599821679,0.004,60810.0,60809.0,0.13234095]
[1723599821881,0.004,60810.0,60809.0,0.083197]
[1723599823383,0.004,60810.0,60809.0,0.05030095]
[1723599823588,0.086196,60810.0,60809.0,0.001]
[1723599825985,0.004,60810.0,60809.0,0.001]
[1723599827085,0.004,60810.0,60809.0,0.05031066]
[1723599827488,0.004,60810.0,60809.0,0.083197]
[1723599829682,0.004,60810.0,60809.0,0.151297]
[1723599830890,0.004,60810.0,60809.0,0.2168143]
[1723599832501,0.004,60810.0,60809.0,0.151297]
[1723599833201,0.082183,60820.0,60813.0,0.082192]
[1723599833404,0.082184,60819.0,60817.0,0.04930307]
[1723599833603,0.152184,60819.0,60817.0,0.04930307]
[1723599834509,0.152184,60819.0,60816.0,0.04930307]
[1723599834810,0.082185,60818.0,60816.0,0.04930307]
[1723599835012,0.082186,60817.0,60815.0,0.41010307]
[1723599835200,0.122186,60817.0,60815.0,0.41010307]
[1723599835908,0.04,60817.0,60816.0,0.001]
[1723599836115,0.04,60817.0,60816.0,0.083188]
[1723599836407,0.04,60817.0,60816.0,0.13244864]
[1723599836605,0.05,60817.0,60816.0,0.082188]
[1723599836909,0.19961604,60817.0,60816.0,0.083188]
[1723599837107,0.28180204,60817.0,60816.0,0.001]
[1723599837901,0.39550204,60817.0,60816.0,0.001]
[1723599838706,0.39650204,60817.0,60816.0,0.002]
[1723599838909,0.39650488,60817.0,60816.0,0.002]
[1723599839306,0.39350488,60817.0,60816.0,0.002]
[1723599841013,0.37875447,60817.0,60802.0,0.20423439]
[1723599841316,0.1137,60806.0,60805.0,0.082203]
[1723599841615,0.33075447,60806.0,60805.0,0.082203]
[1723599842213,0.33076882,60806.0,60805.0,0.082203]
[1723599842924,0.33076882,60806.0,60805.0,0.087203]
[1723599843121,0.33076882,60806.0,60805.0,0.005]
[1723599843414,0.67493604,60806.0,60805.0,0.005]
[1723599844021,0.56123604,60806.0,60805.0,0.005]
[1723599844207,0.29926982,60806.0,60805.0,0.005]
[1723599844820,0.082201,60806.0,60805.0,0.005]
[1723599845511,0.082205,60804.0,60799.0,0.00024666]
[1723599845913,0.082208,60802.0,60799.0,0.00024666]
[1723599846811,0.082208,60802.0,60799.0,0.00924666]
[1723599847116,0.001,60804.0,60799.0,0.01124666]
[1723599847307,0.001,60804.0,60803.0,0.443005]
[1723599847507,0.001,60804.0,60803.0,0.49223357]
[1723599847711,0.001,60804.0,60803.0,0.443005]
[1723599848921,0.01027917,60809.0,60806.0,0.0822]
[1723599849123,0.08243998,60812.0,60806.0,0.0822]
[1723599849320,0.082195,60811.0,60806.0,0.0822]
[1723599850718,0.442995,60811.0,60806.0,0.0822]
[1723599851625,0.442995,60811.0,60806.0,0.0832]
[1723599851810,0.09070008,60810.0,60806.0,0.0832]
[1723599852012,0.09070008,60809.0,60806.0,0.0822]
[1723599852215,0.09070008,60808.0,60807.0,0.0822]
[1723599853522,0.09070008,60808.0,60806.0,0.001]
[1723599853724,0.09070008,60807.0,60806.0,0.001]
[1723599854213,0.22067079,60807.0,60806.0,0.001]
[1723599854411,0.27112112,60807.0,60806.0,0.001]
[1723599854610,0.09070008,60807.0,60806.0,0.001]
[1723599854818,0.27112112,60807.0,60801.0,0.3608]
[1723599855016,0.16402529,60805.0,60804.0,0.082204]
[1723599855215,0.25472537,60805.0,60804.0,0.082204]
[1723599855428,0.09070008,60805.0,60804.0,0.082204]
[1723599855920,0.2383222,60805.0,60804.0,0.082204]
[1723599856426,0.2393222,60805.0,60804.0,0.088204]
[1723599856628,0.09170008,60805.0,60804.0,0.088204]
[1723599857420,0.2393222,60805.0,60804.0,0.088204]
[1723599858627,0.24968105,60805.0,60804.0,0.088204]
[1723599859828,0.01135885,60805.0,60804.0,0.088204]
[1723599864124,0.001,60805.0,60804.0,0.088204]
[1723599864328,0.001,60805.0,60804.0,0.15384209]
[1723599865229,0.001,60805.0,60804.0,0.088204]
[1723599865434,0.001,60805.0,60804.0,0.15384802]
[1723599866426,0.001,60805.0,60804.0,0.088204]
[1723599867022,0.091699,60805.0,60804.0,0.088204]
[1723599868128,0.173902,60805.0,60804.0,0.088204]
[1723599868333,0.173902,60805.0,60804.0,0.006]
[1723599869419,0.389102,60805.0,60804.0,0.006]
[1723599870735,0.173902,60805.0,60804.0,0.006]
[1723599871033,0.091699,60805.0,60804.0,0.088204]
[1723599875032,0.001,60805.0,60804.0,0.088204]
[1723599879927,0.1147,60805.0,60804.0,0.088204]
[1723599880930,0.1147,60805.0,60804.0,0.2955079]
[1723599881529,0.1147,60805.0,60804.0,0.21346028]
[1723599881732,0.001,60805.0,60804.0,0.32716028]
[1723599881924,0.15064941,60805.0,60804.0,0.201904]
[1723599883142,0.15064941,60805.0,60804.0,0.088204]
[1723599883143,0.20539918,60805.0,60804.0,0.088204]
[1723599885739,0.56619918,60805.0,60804.0,0.088204]
[1723599886243,0.64840218,60805.0,60804.0,0.088204]
[1723599887643,0.64840218,60805.0,60804.0,0.006]
[1723599888241,0.70735241,60805.0,60804.0,0.006]
[1723599889044,0.92092208,60805.0,60804.0,0.006]
[1723599889939,0.77127267,60805.0,60804.0,0.13126263]
[1723599890335,0.557703,60805.0,60804.0,0.13126263]
[1723599894944,0.557703,60805.0,60804.0,0.13126264]
[1723599895852,0.557703,60805.0,60804.0,0.13126227]
[1723599897150,0.557703,60805.0,60804.0,0.006]
[1723599897468,0.196903,60805.0,60804.0,0.07174495]
[1723599897649,0.196903,60805.0,60804.0,0.006]
[1723599899349,0.196903,60805.0,60804.0,0.05529991]
[1723599899550,0.196903,60805.0,60804.0,0.006]
[1723599900242,1.090303,60805.0,60804.0,0.006]
[1723599900446,0.082207,60802.0,60801.0,0.04929991]
[1723599900647,0.1237,60802.0,60795.0,0.04929991]
[1723599900850,0.08222,60792.0,60788.0,0.04930778]
[1723599901051,0.4745,60789.0,60784.0,0.04930778]
[1723599901351,0.4745,60789.0,60783.0,0.04930778]
[1723599901352,0.082231,60784.0,60783.0,0.04930778]
[1723599901553,0.1137,60785.0,60779.0,0.13154578]
[1723599901758,0.3608,60780.0,60779.0,0.04930778]
[1723599901948,0.3608,60780.0,60778.0,0.04930778]
[1723599902252,0.08224,60777.0,60776.0,0.04949215]
[1723599902455,0.08224,60777.0,60776.0,0.00024666]
[1723599903764,0.09242098,60777.0,60776.0,0.00024666]
[1723599904061,0.09242098,60777.0,60776.0,0.00224666]
[1723599904955,0.09242098,60777.0,60776.0,0.00824666]
[1723599904956,0.09342098,60777.0,60776.0,0.00824666]
[1723599905163,0.13369463,60777.0,60776.0,0.00824666]
[1723599905563,0.26512101,60777.0,60776.0,0.00824666]
[1723599906165,0.62729463,60777.0,60776.0,0.00824666]
[1723599906366,0.18229074,60777.0,60767.0,0.0745]
[1723599906569,0.3608,60772.0,60767.0,0.0745]
[1723599907268,0.09355566,60777.0,60771.0,0.082247]
[1723599907667,0.00024666,60776.0,60771.0,0.082247]
[1723599908067,0.08248866,60776.0,60771.0,0.082247]
[1723599908267,0.00024666,60776.0,60771.0,0.082247]
[1723599908863,0.00124666,60776.0,60771.0,0.083247]
[1723599909075,0.3608,60775.0,60771.0,0.083247]
[1723599909265,0.443044,60775.0,60771.0,0.083247]
[1723599910065,0.443044,60775.0,60772.0,0.082247]
[1723599910371,0.3608,60775.0,60774.0,0.082244]
[1723599911876,0.3618,60775.0,60774.0,0.082244]
[1723599912077,0.05136009,60781.0,60775.0,0.082242]
[1723599912276,0.05136009,60781.0,60777.0,0.04900482]
[1723599912677,0.37087781,60782.0,60777.0,0.04900482]
[1723599912882,0.37087781,60782.0,60778.0,0.12070482]
[1723599913176,0.3608,60780.0,60775.0,0.003]
[1723599913475,0.6452,60776.0,60775.0,0.003]
[1723599913666,0.727442,60776.0,60775.0,0.003]
[1723599914077,0.082246,60773.0,60771.0,0.04900482]
[1723599914377,5.814e-05,60772.0,60770.0,0.04900482]
[1723599914578,5.814e-05,60772.0,60769.0,0.04900482]
[1723599914968,5.814e-05,60772.0,60766.0,0.06574495]
[1723599914969,5.814e-05,60772.0,60770.0,0.04900482]
[1723599915168,5.814e-05,60772.0,60768.0,0.06574495]
[1723599915579,5.814e-05,60772.0,60769.0,0.06574495]
[1723599915778,0.00105814,60772.0,60769.0,0.06774495]
[1723599915974,0.08330514,60772.0,60771.0,0.04901053]
[1723599916166,0.08330514,60772.0,60768.0,0.06574495]
[1723599916167,5.814e-05,60772.0,60768.0,0.04901053]
[1723599916367,0.443051,60769.0,60768.0,0.06301053]
[1723599916573,0.443051,60769.0,60768.0,0.014]
[1723599916973,0.443051,60769.0,60768.0,0.011]
[1723599917281,0.443051,60769.0,60767.0,0.04901053]
[1723599917876,0.443051,60769.0,60768.0,0.04901053]
[1723599918878,0.444051,60769.0,60768.0,0.013]
[1723599919781,0.444051,60769.0,60766.0,0.04901053]
[1723599919782,1.732131,60769.0,60763.0,0.04925719]
[1723599919980,0.082265,60759.0,60758.0,0.04901053]
[1723599920284,0.082265,60759.0,60751.0,0.04901053]
[1723599920285,0.64525814,60759.0,60751.0,0.04901053]
[1723599920480,0.6452,60752.0,60749.0,0.04901053]
[1723599920880,0.6452,60752.0,60748.0,0.04901053]
[1723599921080,0.6452,60752.0,60749.0,0.04901053]
[1723599921276,0.6452,60752.0,60748.0,0.04901053]
[1723599921579,0.6452,60752.0,60744.0,0.00024687]
[1723599921580,0.3608,60752.0,60749.0,0.04901053]
[1723599921771,0.3608,60752.0,60751.0,0.04901053]
[1723599921976,0.3608,60752.0,60751.0,0.082276]
[1723599922583,0.3608,60752.0,60751.0,0.13128347]
[1723599922785,0.3618,60752.0,60751.0,0.13128347]
[1723599923179,0.3628,60752.0,60751.0,0.082276]
[1723599923379,0.3618,60752.0,60751.0,0.082276]
[1723599923584,0.002,60752.0,60751.0,0.14328808]
[1723599923785,0.00024687,60756.0,60753.0,0.082272]
[1723599924285,0.00024687,60756.0,60755.0,0.04902353]
[1723599925179,0.00024687,60756.0,60755.0,0.13129353]
[1723599925380,0.00024687,60756.0,60755.0,0.08227]
[1723599925578,0.00124687,60756.0,60755.0,0.08227]
[1723599925980,0.00124687,60756.0,60754.0,0.06574495]
[1723599926179,0.00124687,60756.0,60755.0,0.001]
[1723599926378,0.00124687,60756.0,60755.0,0.015]
[1723599926579,0.00124687,60756.0,60755.0,0.08074495]
[1723599926981,0.28564687,60756.0,60755.0,0.08074495]
[1723599927483,0.28564687,60756.0,60755.0,0.015]
[1723599929083,0.00124687,60756.0,60755.0,0.09727]
[1723599929786,5.814e-05,60759.0,60758.0,0.082266]
[1723599929987,5.814e-05,60759.0,60758.0,0.443066]
[1723599931593,5.814e-05,60759.0,60758.0,0.457066]
[1723599932187,0.00105814,60759.0,60758.0,0.459066]
[1723599932385,0.00105814,60759.0,60758.0,1.4781666]
[1723599932583,0.00024687,60765.0,60764.0,0.082258]
[1723599933791,0.00024687,60765.0,60761.0,0.08197676]
[1723599933993,0.00024687,60765.0,60762.0,0.08226]
[1723599934590,0.00024687,60765.0,60764.0,0.009]
[1723599934791,0.00024687,60765.0,60764.0,0.13434325]
[1723599935096,0.00024687,60765.0,60764.0,0.12534325]
[1723599935798,0.08350387,60765.0,60764.0,0.12834379]
[1723599936088,0.08350387,60765.0,60764.0,0.012]
[1723599937385,0.08350387,60765.0,60764.0,0.17624459]
[1723599937386,0.00124687,60765.0,60764.0,0.17624459]
[1723599940495,0.00124687,60765.0,60764.0,0.30159202]
[1723599940893,0.00124687,60765.0,60764.0,0.094258]
[1723599941498,0.00124687,60765.0,60764.0,0.17624459]
[1723599941699,0.00124687,60765.0,60764.0,0.094258]
[1723599942987,0.08350387,60765.0,60764.0,0.012]
[1723599943391,0.57722387,60765.0,60764.0,0.012]
[1723599944594,0.00124687,60765.0,60764.0,0.012]
[1723599945389,0.00124687,60765.0,60764.0,0.094258]
[1723599946301,0.00124687,60765.0,60764.0,0.455058]
[1723599947094,0.00124687,60765.0,60764.0,0.50428251]
[1723599947297,0.082239,60779.0,60764.0,1.26652]
[1723599947503,0.3708,60778.0,60766.0,0.04924865]
[1723599947702,0.3708,60778.0,60774.0,0.082243]
[1723599948393,0.3708,60778.0,60775.0,0.082243]
[1723599948996,0.011,60778.0,60775.0,0.082243]
[1723599949398,0.013,60778.0,60775.0,0.082243]
[1723599949599,0.012,60778.0,60776.0,0.082241]
[1723599949800,0.012,60778.0,60777.0,0.20755773]
[1723599951191,0.013,60778.0,60777.0,0.20755773]
[1723599951900,0.01,60778.0,60777.0,0.20755773]
[1723599952107,0.015,60778.0,60777.0,0.20755773]
[1723599952794,0.082236,60780.0,60777.0,0.20755773]
[1723599952996,0.082236,60780.0,60778.0,0.12531773]
[1723599953197,0.082236,60780.0,60779.0,0.12531773]
[1723599953393,0.36104625,60782.0,60779.0,0.12531773]
[1723599953602,0.01,60782.0,60781.0,0.082235]
[1723599953808,0.082228,60786.0,60783.0,0.082232]
[1723599953992,0.092228,60786.0,60784.0,0.2237168]
[1723599954198,0.092228,60786.0,60785.0,0.12531773]
[1723599954401,0.092228,60786.0,60785.0,0.20730799]
[1723599954801,0.453028,60786.0,60785.0,0.20730799]
[1723599954997,0.453028,60786.0,60784.0,0.08199026]
[1723599954998,0.08223,60785.0,60784.0,0.08199026]
[1723599955200,0.082231,60784.0,60783.0,0.001]
[1723599956211,0.082235,60781.0,60780.0,0.08199026]
[1723599956412,0.082235,60781.0,60780.0,0.20730315]
[1723599956413,0.443035,60781.0,60780.0,0.20730315]
[1723599956803,0.48330358,60781.0,60778.0,0.082238]
[1723599957105,0.13113078,60779.0,60771.0,0.0729]
[1723599957307,0.11473321,60772.0,60771.0,0.0729]
[1723599957607,0.13113078,60772.0,60771.0,0.0729]
[1723599957805,0.17139936,60772.0,60771.0,0.155147]
[1723599958205,0.17139936,60772.0,60771.0,0.082247]
[1723599958409,0.12251558,60772.0,60770.0,0.00024687]
[1723599958611,0.04026858,60771.0,60770.0,0.08249687]
[1723599958800,0.13114526,60771.0,60770.0,0.08249687]
[1723599959000,0.17141887,60771.0,60770.0,0.08249687]
[1723599959411,0.04027361,60771.0,60770.0,0.08249687]
[1723599960009,0.04127361,60771.0,60770.0,0.08649687]
[1723599960411,0.001,60771.0,60770.0,0.08649687]
[1723599961211,0.083248,60771.0,60770.0,0.00424687]
[1723599961409,0.083248,60771.0,60770.0,0.00724687]
[1723599963212,0.001,60771.0,60770.0,0.00724687]
[1723599963515,0.001,60771.0,60770.0,0.08949687]
[1723599964820,0.40289954,60774.0,60771.0,0.082248]
[1723599965017,0.32065454,60774.0,60773.0,0.08201435]
[1723599965223,0.3608,60792.0,60773.0,0.12532908]
[1723599965523,0.102227,60787.0,60784.0,0.082231]
[1723599965822,0.11528519,60787.0,60784.0,0.16423117]
[1723599966013,0.082228,60786.0,60784.0,0.16423117]
[1723599966213,0.02,60786.0,60784.0,0.08200017]
[1723599966414,0.102229,60786.0,60783.0,0.08200017]
[1723599966609,0.102229,60786.0,60782.0,0.16423317]
[1723599967025,0.08223,60785.0,60782.0,0.082233]
[1723599967215,0.09223,60785.0,60782.0,0.082233]
[1723599967416,0.082231,60784.0,60782.0,0.16423317]
[1723599967621,0.092231,60784.0,60782.0,0.082233]
[1723599967824,0.01,60784.0,60783.0,0.28953679]
[1723599968128,0.01,60784.0,60783.0,0.20753662]
[1723599968829,0.01,60784.0,60783.0,0.12530462]
[1723599969128,0.082232,60783.0,60779.0,0.18063607]
[1723599969317,0.082232,60783.0,60781.0,0.08193884]
[1723599969522,0.082232,60783.0,60780.0,0.08193884]
[1723599970730,0.082232,60783.0,60781.0,0.08193884]
[1723599971122,0.082232,60783.0,60781.0,0.16417384]
[1723599971719,0.082232,60783.0,60781.0,0.082235]
[1723599971720,0.09074143,60782.0,60781.0,0.082235]
[1723599972725,0.09074143,60782.0,60781.0,0.083235]
[1723599973228,0.09374143,60782.0,60781.0,0.083235]
[1723599973824,0.53677543,60782.0,60781.0,0.001]
[1723599974026,0.082241,60777.0,60772.0,0.082246]
[1723599974220,0.13126553,60775.0,60771.0,0.2146]
[1723599974425,0.17159402,60775.0,60774.0,0.082244]
[1723599974631,0.04026837,60775.0,60771.0,0.2146]
[1723599974825,0.14767372,60778.0,60771.0,0.2146]
[1723599974826,0.17159859,60774.0,60771.0,0.2146]
[1723599975034,0.04026837,60773.0,60772.0,0.082247]
[1723599975326,0.04026837,60773.0,60772.0,0.083247]
[1723599976127,0.001,60775.0,60773.0,0.082245]
[1723599976334,0.04026914,60774.0,60773.0,0.082245]
[1723599977127,0.0907439,60774.0,60773.0,0.082245]
[1723599977330,0.14767372,60775.0,60773.0,0.082245]
[1723599978422,0.082243,60776.0,60772.0,0.004]
[1723599978731,0.14784459,60774.0,60773.0,0.082246]
[1723599979036,0.23958849,60774.0,60773.0,0.086246]
[1723599979629,0.23858849,60774.0,60773.0,0.082246]
[1723599979935,0.17729116,60778.0,60773.0,0.47495761]
[1723599980128,0.17729116,60778.0,60774.0,0.27784494]
[1723599980329,0.17729116,60778.0,60775.0,0.27784494]
[1723599980533,0.25953016,60778.0,60776.0,0.27784494]
[1723599980734,0.25953016,60778.0,60777.0,0.27784494]
[1723599980927,0.09524718,60778.0,60777.0,0.27784595]
[1723599981839,0.47188618,60778.0,60777.0,0.12979473]
[1723599982041,0.47188618,60778.0,60773.0,0.10256676]
[1723599982042,0.164488,60774.0,60773.0,0.004]
[1723599982333,0.082248,60771.0,60770.0,0.08240251]
[1723599982531,1.221128,60771.0,60770.0,0.00024687]
[1723599982936,1.221128,60771.0,60770.0,0.06594849]
[1723599983228,1.13888,60771.0,60768.0,0.03079962]
[1723599983432,1.13888,60771.0,60760.0,0.09856676]
[1723599983433,0.6552,60771.0,60766.0,0.04924378]
[1723599983634,0.082263,60760.0,60759.0,0.08215564]
[1723599983830,0.082263,60760.0,60753.0,0.09856676]
[1723599983831,0.082266,60758.0,60757.0,0.08215564]
[1723599984437,0.082269,60757.0,60755.0,0.08215564]
[1723599984736,0.082269,60756.0,60755.0,0.08215564]
[1723599984936,0.082269,60756.0,60751.0,0.00024687]
[1723599984937,0.2146,60759.0,60753.0,0.09856676]
[1723599985237,0.082267,60757.0,60756.0,0.08202816]
[1723599985433,0.082267,60757.0,60752.0,0.08202816]
[1723599985434,0.082269,60756.0,60752.0,0.08202816]
[1723599985628,0.082269,60756.0,60751.0,0.00024687]
[1723599985629,0.082274,60752.0,60751.0,0.00024687]
[1723599985825,0.443074,60752.0,60751.0,0.00024687]
[1723599986135,0.443074,60752.0,60739.0,0.08202816]
[1723599986136,1.446874,60752.0,60739.0,0.08202816]
[1723599986326,0.7216,60741.0,60736.0,0.08202816]
[1723599986524,0.7216,60741.0,60731.0,0.08202816]
[1723599986525,0.2844,60738.0,60731.0,0.08202816]
[1723599986831,0.366693,60738.0,60729.0,0.16433216]
[1723599987026,0.366693,60738.0,60730.0,0.16433216]
[1723599987229,0.366693,60738.0,60730.0,0.082304]
[1723599987638,0.366693,60738.0,60737.0,0.00120432]
[1723599988335,0.36276001,60741.0,60737.0,0.00120432]
[1723599988537,0.3618,60741.0,60738.0,0.082293]
[1723599988932,0.3618,60741.0,60737.0,0.01520432]
[1723599989127,0.3608,60741.0,60737.0,0.01420432]
[1723599989333,0.001,60738.0,60737.0,0.01520432]
[1723599989737,0.3608,60741.0,60737.0,0.01420432]
[1723599990040,0.44409,60741.0,60738.0,0.001]
[1723599990539,0.44409,60741.0,60737.0,0.01420432]
[1723599990540,0.001,60738.0,60737.0,0.01520432]
[1723599990744,0.001,60738.0,60737.0,0.09749932]
[1723599990940,0.001,60738.0,60737.0,0.08349932]
[1723599991237,0.001,60738.0,60737.0,0.01520432]
[1723599991238,1.343906,60738.0,60737.0,0.01520432]
[1723599991440,1.343906,60738.0,60731.0,0.00024687]
[1723599991441,0.082301,60732.0,60731.0,0.00024687]
[1723599991743,0.727501,60732.0,60731.0,0.00024687]
[1723599991937,1.221461,60732.0,60731.0,0.00024687]
[1723599992630,1.22165694,60732.0,60731.0,0.01424687]
[1723599993038,1.22265694,60732.0,60731.0,0.01424687]
[1723599993634,0.72869694,60732.0,60731.0,0.01424687]
[1723599994043,1.22265694,60732.0,60731.0,0.00024687]
[1723599994236,1.22365694,60732.0,60731.0,0.01324687]
[1723599994544,0.72969694,60732.0,60731.0,0.01324687]
[1723599996542,0.44529694,60732.0,60731.0,0.01324687]
[1723599996746,0.36299594,60732.0,60731.0,0.09554987]
[1723600000451,0.44529694,60732.0,60731.0,0.01324687]
[1723600005649,0.72969694,60732.0,60731.0,0.01324687]
[1723600006953,0.82969694,60732.0,60731.0,0.01324687]
[1723600009857,0.78852021,60732.0,60731.0,0.01324687]
[1723600013253,0.78852021,60732.0,60725.0,0.08202816]
[1723600013254,0.082309,60726.0,60725.0,0.08202816]
[1723600013454,0.8376724,60726.0,60718.0,0.17026676]
[1723600013656,0.5532724,60726.0,60721.0,0.08204611]
[1723600013861,0.082316,60721.0,60720.0,0.08204611]
[1723600014363,0.082316,60721.0,60719.0,0.08204611]
[1723600014364,0.082318,60720.0,60719.0,0.08204611]
[1723600014559,0.366718,60720.0,60719.0,0.12545163]
[1723600014865,0.366718,60720.0,60717.0,0.09856676]
[1723600015163,0.082319,60719.0,60718.0,0.12545109]
[1723600016653,0.083319,60719.0,60718.0,0.12645109]
[1723600017060,0.01264436,60720.0,60719.0,0.082319]
[1723600017365,0.0001594,60721.0,60720.0,0.082318]
[1723600017560,0.0001594,60721.0,60720.0,0.36045957]
[1723600018063,0.2844,60726.0,60720.0,1.53302157]
[1723600018064,0.00088,60726.0,60720.0,1.53302157]
[1723600018254,0.00088,60726.0,60722.0,0.11486667]
[1723600018456,0.00088,60726.0,60723.0,0.71561134]
[1723600018655,0.36104687,60727.0,60726.0,0.082309]
[1723600018855,0.36104687,60727.0,60726.0,0.30631079]
[1723600019160,0.36109179,60727.0,60726.0,0.30631079]
[1723600019952,0.36109179,60727.0,60726.0,0.22400179]
[1723600020265,0.36109179,60727.0,60725.0,0.0821403]
[1723600020266,0.082309,60726.0,60725.0,0.0821403]
[1723600020454,0.082309,60726.0,60723.0,0.002]
[1723600020455,0.2844,60726.0,60723.0,0.0841403]
[1723600020655,0.082311,60725.0,60724.0,0.12544516]
[1723600020863,0.536911,60725.0,60724.0,0.20759077]
[1723600021167,0.536911,60725.0,60724.0,0.12544516]
[1723600021664,0.466711,60725.0,60724.0,0.12544516]
[1723600022760,0.082312,60724.0,60723.0,0.0985507]
[1723600022962,0.192312,60724.0,60723.0,0.22399403]
[1723600024166,0.554112,60724.0,60723.0,0.22399403]
[1723600024759,0.555112,60724.0,60723.0,0.22599403]
[1723600024953,0.555112,60724.0,60723.0,0.12744333]
[1723600025162,0.555112,60724.0,60723.0,0.28012275]
[1723600025360,0.555112,60724.0,60723.0,0.12744333]
[1723600026464,0.555112,60724.0,60723.0,0.22601009]
[1723600027370,0.555112,60724.0,60723.0,0.12744046]
[1723600027555,0.555112,60724.0,60723.0,0.20958164]
[1723600027760,0.624812,60724.0,60723.0,0.20958164]
[1723600028165,0.624812,60724.0,60723.0,0.12744046]
[1723600029160,0.624812,60724.0,60723.0,0.20958131]
[1723600029555,0.555112,60724.0,60723.0,0.20958131]
[1723600029755,0.555112,60724.0,60723.0,0.12744046]
[1723600032462,0.555112,60724.0,60723.0,0.20959099]
[1723600032662,0.555112,60724.0,60723.0,0.12744046]
[1723600033572,0.555112,60724.0,60723.0,0.20959282]
[1723600033772,0.555112,60724.0,60723.0,0.12744046]
[1723600034569,0.555112,60724.0,60723.0,0.20959881]
[1723600034772,0.555112,60724.0,60723.0,0.002]
[1723600034773,1.049152,60724.0,60723.0,0.002]
[1723600035471,1.049152,60724.0,60723.0,0.004]
[1723600035974,0.915912,60724.0,60723.0,0.004]
[1723600036965,0.555112,60724.0,60723.0,0.004]
[1723600037166,0.555112,60724.0,60723.0,0.08615835]
[1723600037363,0.555112,60724.0,60723.0,0.1294366]
[1723600037569,0.554112,60724.0,60723.0,0.1274366]
[1723600037767,0.555112,60724.0,60723.0,0.1294366]
[1723600037962,0.555112,60724.0,60723.0,0.21161905]
[1723600038172,0.555112,60724.0,60723.0,0.1294366]
[1723600038377,0.555112,60724.0,60723.0,0.21161904]
[1723600038577,0.555112,60724.0,60723.0,0.1294366]
[1723600039971,0.555112,60724.0,60723.0,0.21164202]
[1723600040777,0.555112,60724.0,60723.0,0.08620542]
[1723600040972,1.531464,60724.0,60723.0,0.004]
[1723600041178,0.082323,60716.0,60715.0,0.08220542]
[1723600041378,0.082324,60715.0,60714.0,0.08245229]
[1723600041577,0.645448,60715.0,60714.0,0.00024687]
[1723600041772,0.164676,60705.0,60704.0,0.09856676]
[1723600042078,0.164676,60705.0,60692.0,0.14384513]
[1723600042079,0.164692,60699.0,60698.0,0.08225367]
[1723600042272,0.082353,60694.0,60693.0,0.08225701]
[1723600042471,0.08236,60689.0,60685.0,0.08225701]
[1723600042673,0.6452,60686.0,60684.0,0.08225701]
[1723600042978,0.6452,60686.0,60684.0,0.16462301]
[1723600043171,0.3608,60686.0,60685.0,0.16462201]
[1723600043368,0.36094641,60686.0,60685.0,0.082365]
[1723600043967,0.36194641,60686.0,60685.0,0.082365]
[1723600044978,0.44431041,60686.0,60685.0,0.0655886]
[1723600045180,0.44531041,60686.0,60684.0,0.0655886]
[1723600045582,0.44531041,60686.0,60682.0,0.1479576]
[1723600045884,0.44531041,60686.0,60683.0,0.0655886]
[1723600046078,0.44531041,60686.0,60682.0,0.1479576]
[1723600046276,0.44531041,60686.0,60682.0,0.082369]
[1723600046583,0.36294641,60686.0,60685.0,0.082365]
[1723600046782,0.0122426,60691.0,60686.0,0.082363]
[1723600046972,0.00024708,60693.0,60686.0,0.082363]
[1723600047182,0.001,60686.0,60685.0,0.0655886]
[1723600047580,0.001,60686.0,60685.0,0.9599486]
[1723600047885,0.01290527,60693.0,60690.0,0.082358]
[1723600048086,7.465e-05,60692.0,60690.0,0.082358]
[1723600049786,0.00207465,60692.0,60690.0,0.084358]
[1723600050178,0.00207465,60692.0,60691.0,0.082357]
[1723600050580,0.00207465,60692.0,60691.0,0.148457]
[1723600051186,0.00207465,60692.0,60691.0,0.2140456]
[1723600051387,0.00207465,60692.0,60691.0,0.3528456]